[Event "Titled Tuesday Blitz August 24 2021"]
[White "Pavlov, Danila"]
[Black "Song, Michael"]
[WhiteFideId "34126594"]
[BlackFideId "2613190"]
[WhiteElo "2323"]
[BlackElo "2274"]
[Result "1-0"]
[Round "06"]
[TimeControl "180+1"]
[Date "2021.08.24"]
[WhiteClock "0:00:28"]
[BlackClock "0:00:33"]

1. e4 {[%clk 0:03:00]}  e5 {[%clk 0:02:59]} 2. Nf3 {[%clk 0:02:59]}  Nc6 {[%clk 0:03:00]} 3. Bb5 {[%clk 0:02:59]}  Nf6 {[%clk 0:02:58]} 4. O-O {[%clk 0:02:59]}  Nxe4 {[%clk 0:02:58]} 5. Re1 {[%clk 0:02:59]}  Nd6 {[%clk 0:02:58]} 6. Nxe5 {[%clk 0:02:59]}  Be7 {[%clk 0:02:58]} 7. Bf1 {[%clk 0:02:59]}  O-O {[%clk 0:02:57]} 8. Nc3 {[%clk 0:02:59]}  Nf5 {[%clk 0:02:56]} 9. Nd5 {[%clk 0:02:56]}  Bd6 {[%clk 0:02:53]} 10. Nc4 {[%clk 0:02:48]}  Bc5 {[%clk 0:02:52]} 11. c3 {[%clk 0:02:46]}  Nce7 {[%clk 0:02:52]} 12. Nxe7+ {[%clk 0:02:42]}  Bxe7 {[%clk 0:02:51]} 13. Qf3 {[%clk 0:02:36]}  d5 {[%clk 0:02:47]} 14. Ne3 {[%clk 0:02:36]}  Nxe3 {[%clk 0:02:46]} 15. dxe3 {[%clk 0:02:36]}  c6 {[%clk 0:02:42]} 16. Bd3 {[%clk 0:02:36]}  f5 {[%clk 0:02:37]} 17. c4 {[%clk 0:02:11]}  Be6 {[%clk 0:02:37]} 18. b3 {[%clk 0:02:07]}  Bf6 {[%clk 0:02:32]} 19. Rb1 {[%clk 0:02:07]}  Qa5 {[%clk 0:02:22]} 20. Qe2 {[%clk 0:02:02]}  Rad8 {[%clk 0:02:13]} 21. b4 {[%clk 0:01:49]}  Qa4 {[%clk 0:01:52]} 22. h3 {[%clk 0:01:28]}  Bc3 {[%clk 0:01:44]} 23. Rf1 {[%clk 0:01:14]}  Bxb4 {[%clk 0:01:34]} 24. a3 {[%clk 0:00:51]}  Bc3 {[%clk 0:01:24]} 25. cxd5 {[%clk 0:00:51]}  Bxd5 {[%clk 0:01:17]} 26. Rxb7 {[%clk 0:00:50]}  c5 {[%clk 0:00:58]} 27. Rb1 {[%clk 0:00:37]}  c4 {[%clk 0:00:58]} 28. Bc2 {[%clk 0:00:36]}  Qc6 {[%clk 0:00:58]} 29. f3 {[%clk 0:00:36]}  Rde8 {[%clk 0:00:54]} 30. Bd2 {[%clk 0:00:35]}  Bxd2 {[%clk 0:00:49]} 31. Qxd2 {[%clk 0:00:36]}  Qc5 {[%clk 0:00:50]} 32. Rfe1 {[%clk 0:00:36]}  c3 {[%clk 0:00:46]} 33. Qd3 {[%clk 0:00:29]}  Rf7 {[%clk 0:00:33]} 34. Rb5 {[%clk 0:00:28]} 1-0


[Site "https://www.chess.com"]

[Event "Titled Tuesday Blitz August 24 2021"]
[White "Ponikarovsky, Alexey"]
[Black "Palchuk, Andrii"]
[WhiteFideId "4122887"]
[BlackFideId "14176688"]
[WhiteElo "1944"]
[BlackElo "2320"]
[Result "1-0"]
[Round "06"]
[TimeControl "180+1"]
[Date "2021.08.24"]
[WhiteClock "0:01:14"]
[BlackClock "0:00:12"]

1. e4 {[%clk 0:03:00]}  d5 {[%clk 0:02:59]} 2. exd5 {[%clk 0:03:00]}  Nf6 {[%clk 0:02:59]} 3. c4 {[%clk 0:03:00]}  c6 {[%clk 0:02:59]} 4. d4 {[%clk 0:03:00]}  cxd5 {[%clk 0:02:59]} 5. Nf3 {[%clk 0:03:01]}  e6 {[%clk 0:02:57]} 6. Nc3 {[%clk 0:03:01]}  Be7 {[%clk 0:02:58]} 7. cxd5 {[%clk 0:03:02]}  Nxd5 {[%clk 0:02:58]} 8. Bb5+ {[%clk 0:03:02]}  Bd7 {[%clk 0:02:46]} 9. Bxd7+ {[%clk 0:03:02]}  Nxd7 {[%clk 0:02:42]} 10. Nxd5 {[%clk 0:03:01]}  exd5 {[%clk 0:02:43]} 11. O-O {[%clk 0:03:02]}  O-O {[%clk 0:02:42]} 12. Qb3 {[%clk 0:03:02]}  Nb6 {[%clk 0:02:39]} 13. Bf4 {[%clk 0:03:01]}  Bd6 {[%clk 0:02:35]} 14. Be5 {[%clk 0:02:59]}  f6 {[%clk 0:02:32]} 15. Bg3 {[%clk 0:02:58]}  Re8 {[%clk 0:02:27]} 16. Rfe1 {[%clk 0:02:53]}  Bxg3 {[%clk 0:02:26]} 17. hxg3 {[%clk 0:02:51]}  Qd7 {[%clk 0:02:26]} 18. Rac1 {[%clk 0:02:46]}  Nc4 {[%clk 0:02:22]} 19. a3 {[%clk 0:02:39]}  b6 {[%clk 0:02:15]} 20. Qc2 {[%clk 0:02:36]}  Rac8 {[%clk 0:02:07]} 21. Rxe8+ {[%clk 0:02:33]}  Rxe8 {[%clk 0:02:06]} 22. Ne1 {[%clk 0:02:30]}  Qg4 {[%clk 0:01:53]} 23. Nd3 {[%clk 0:02:25]}  Qxd4 {[%clk 0:01:46]} 24. Rd1 {[%clk 0:02:24]}  Qe4 {[%clk 0:01:32]} 25. Qc3 {[%clk 0:02:22]}  Ne5 {[%clk 0:01:07]} 26. Nf4 {[%clk 0:02:22]}  Qc4 {[%clk 0:01:00]} 27. Nxd5 {[%clk 0:02:18]}  Qxc3 {[%clk 0:01:00]} 28. Nxc3 {[%clk 0:02:17]}  Re7 {[%clk 0:00:58]} 29. Rd8+ {[%clk 0:02:16]}  Kf7 {[%clk 0:00:58]} 30. f4 {[%clk 0:02:10]}  Nc4 {[%clk 0:00:54]} 31. Nd1 {[%clk 0:02:07]}  Re2 {[%clk 0:00:48]} 32. Kf1 {[%clk 0:02:04]}  Rd2 {[%clk 0:00:41]} 33. Rxd2 {[%clk 0:01:59]}  Nxd2+ {[%clk 0:00:42]} 34. Ke2 {[%clk 0:02:00]}  Ne4 {[%clk 0:00:40]} 35. g4 {[%clk 0:02:00]}  Ke6 {[%clk 0:00:40]} 36. Kd3 {[%clk 0:01:56]}  Nc5+ {[%clk 0:00:38]} 37. Kc4 {[%clk 0:01:54]}  Kd6 {[%clk 0:00:34]} 38. b4 {[%clk 0:01:52]}  Ne6 {[%clk 0:00:32]} 39. f5 {[%clk 0:01:50]}  Nf4 {[%clk 0:00:32]} 40. g3 {[%clk 0:01:46]}  Ne2 {[%clk 0:00:31]} 41. Kb5 {[%clk 0:01:44]}  Kc7 {[%clk 0:00:26]} 42. Ka6 {[%clk 0:01:44]}  Kb8 {[%clk 0:00:27]} 43. a4 {[%clk 0:01:41]}  Nxg3 {[%clk 0:00:26]} 44. Nc3 {[%clk 0:01:40]}  h5 {[%clk 0:00:23]} 45. gxh5 {[%clk 0:01:37]}  Nxf5 {[%clk 0:00:21]} 46. Nb5 {[%clk 0:01:38]}  Ne7 {[%clk 0:00:17]} 47. Nxa7 {[%clk 0:01:38]}  Nd5 {[%clk 0:00:17]} 48. Nc6+ {[%clk 0:01:34]}  Kc7 {[%clk 0:00:17]} 49. Nd4 {[%clk 0:01:20]}  Nxb4+ {[%clk 0:00:16]} 50. Kb5 {[%clk 0:01:20]}  Nd5 {[%clk 0:00:09]} 51. Ne6+ {[%clk 0:01:19]}  Kb7 {[%clk 0:00:09]} 52. Nxg7 {[%clk 0:01:18]}  Ne7 {[%clk 0:00:08]} 53. h6 {[%clk 0:01:15]}  Ng6 {[%clk 0:00:08]} 54. h7 {[%clk 0:01:15]}  Nh8 {[%clk 0:00:08]} 55. Nf5 {[%clk 0:01:15]}  Ng6 {[%clk 0:00:08]} 56. Nd6+ {[%clk 0:01:13]}  Kc7 {[%clk 0:00:08]} 57. Ne8+ {[%clk 0:01:13]}  Kb7 {[%clk 0:00:07]} 58. Nxf6 {[%clk 0:01:13]}  Kc7 {[%clk 0:00:08]} 59. Nd5+ {[%clk 0:01:13]}  Kb7 {[%clk 0:00:08]} 60. Nxb6 {[%clk 0:01:14]}  Nh8 {[%clk 0:00:09]} 61. a5 {[%clk 0:01:14]}  Ng6 {[%clk 0:00:10]} 62. a6+ {[%clk 0:01:14]}  Ka7 {[%clk 0:00:10]} 63. Nc8+ {[%clk 0:01:15]}  Kb8 {[%clk 0:00:11]} 64. Ne7 {[%clk 0:01:14]}  Ka7 {[%clk 0:00:12]} 65. Nxg6 {[%clk 0:01:14]} 1-0


[Site "https://www.chess.com"]

[Event "Titled Tuesday Blitz August 24 2021"]
[White "Potapova, Margarita"]
[Black "Labussiere, Yago"]
[WhiteFideId "14126869"]
[BlackFideId "2186969"]
[WhiteElo "2214"]
[BlackElo "1857"]
[Result "1-0"]
[Round "06"]
[TimeControl "180+1"]
[Date "2021.08.24"]
[WhiteClock "0:00:07"]
[BlackClock "0:00:03"]

1. d4 {[%clk 0:03:00]}  Nf6 {[%clk 0:02:59]} 2. c4 {[%clk 0:03:01]}  g6 {[%clk 0:03:00]} 3. Nc3 {[%clk 0:03:01]}  Bg7 {[%clk 0:03:00]} 4. e4 {[%clk 0:03:01]}  d6 {[%clk 0:03:01]} 5. h3 {[%clk 0:02:59]}  O-O {[%clk 0:03:02]} 6. Be3 {[%clk 0:03:00]}  e5 {[%clk 0:03:02]} 7. d5 {[%clk 0:03:00]}  a5 {[%clk 0:03:01]} 8. g4 {[%clk 0:02:59]}  c6 {[%clk 0:02:58]} 9. Nge2 {[%clk 0:02:58]}  Na6 {[%clk 0:02:55]} 10. Nc1 {[%clk 0:02:53]}  Nc5 {[%clk 0:02:53]} 11. f3 {[%clk 0:02:50]}  Bd7 {[%clk 0:02:48]} 12. Nd3 {[%clk 0:02:49]}  Nxd3+ {[%clk 0:02:35]} 13. Bxd3 {[%clk 0:02:50]}  a4 {[%clk 0:02:24]} 14. Qd2 {[%clk 0:02:27]}  cxd5 {[%clk 0:02:20]} 15. cxd5 {[%clk 0:02:25]}  Qa5 {[%clk 0:02:16]} 16. a3 {[%clk 0:01:58]}  Rfc8 {[%clk 0:01:57]} 17. Na2 {[%clk 0:01:50]}  Qd8 {[%clk 0:01:41]} 18. O-O {[%clk 0:01:43]}  Ne8 {[%clk 0:01:27]} 19. Kh2 {[%clk 0:01:28]}  Nc7 {[%clk 0:01:09]} 20. Qe2 {[%clk 0:01:15]}  Bf6 {[%clk 0:00:40]} 21. Qd2 {[%clk 0:01:12]}  Nb5 {[%clk 0:00:31]} 22. Nc3 {[%clk 0:00:44]}  Nd4 {[%clk 0:00:29]} 23. Bxd4 {[%clk 0:00:44]}  exd4 {[%clk 0:00:29]} 24. Ne2 {[%clk 0:00:44]}  g5 {[%clk 0:00:28]} 25. f4 {[%clk 0:00:38]}  gxf4 {[%clk 0:00:27]} 26. Nxf4 {[%clk 0:00:37]}  Be5 {[%clk 0:00:27]} 27. Kg2 {[%clk 0:00:34]}  Qh4 {[%clk 0:00:23]} 28. Rf3 {[%clk 0:00:26]}  Kh8 {[%clk 0:00:20]} 29. Qf2 {[%clk 0:00:23]}  Qg5 {[%clk 0:00:16]} 30. Nh5 {[%clk 0:00:16]}  Rg8 {[%clk 0:00:14]} 31. Ng3 {[%clk 0:00:15]}  Bxg4 {[%clk 0:00:09]} 32. hxg4 {[%clk 0:00:14]}  Qxg4 {[%clk 0:00:10]} 33. Be2 {[%clk 0:00:12]}  Rg5 {[%clk 0:00:08]} 34. Rh1 {[%clk 0:00:10]}  Rag8 {[%clk 0:00:03]} 35. Rh3 {[%clk 0:00:11]}  f6 {[%clk 0:00:02]} 36. Kh2 {[%clk 0:00:08]}  Qd7 {[%clk 0:00:01]} 37. Kg2 {[%clk 0:00:02]}  Qg7 {[%clk 0:00:02]} 38. Kh2 {[%clk 0:00:02]}  Rxg3 {[%clk 0:00:01]} 39. Rhxg3 {[%clk 0:00:01]}  Qxg3+ {[%clk 0:00:02]} 40. Rxg3 {[%clk 0:00:02]}  Bxg3+ {[%clk 0:00:02]} 41. Qxg3 {[%clk 0:00:03]}  Rxg3 {[%clk 0:00:02]} 42. Kxg3 {[%clk 0:00:04]}  d3 {[%clk 0:00:03]} 43. Bxd3 {[%clk 0:00:04]}  Kg7 {[%clk 0:00:03]} 44. Be2 {[%clk 0:00:04]}  Kg6 {[%clk 0:00:04]} 45. Kg4 {[%clk 0:00:04]}  h6 {[%clk 0:00:03]} 46. Kf4 {[%clk 0:00:05]}  h5 {[%clk 0:00:03]} 47. Bf3 {[%clk 0:00:05]}  h4 {[%clk 0:00:03]} 48. Bg4 {[%clk 0:00:05]}  f5 {[%clk 0:00:04]} 49. exf5+ {[%clk 0:00:03]}  Kf6 {[%clk 0:00:05]} 50. Bh3 {[%clk 0:00:03]}  b6 {[%clk 0:00:03]} 51. Bg4 {[%clk 0:00:03]}  b5 {[%clk 0:00:03]} 52. Bh3 {[%clk 0:00:03]}  Kf7 {[%clk 0:00:04]} 53. Bg4 {[%clk 0:00:02]}  Kg7 {[%clk 0:00:05]} 54. Kg5 {[%clk 0:00:02]}  Kf7 {[%clk 0:00:06]} 55. f6 {[%clk 0:00:02]}  Kf8 {[%clk 0:00:06]} 56. Be6 {[%clk 0:00:03]}  b4 {[%clk 0:00:07]} 57. Kxh4 {[%clk 0:00:02]}  bxa3 {[%clk 0:00:07]} 58. bxa3 {[%clk 0:00:03]}  Ke8 {[%clk 0:00:05]} 59. Kg5 {[%clk 0:00:04]}  Kf8 {[%clk 0:00:06]} 60. Kg6 {[%clk 0:00:05]}  Ke8 {[%clk 0:00:07]} 61. Kg7 {[%clk 0:00:05]}  Kd8 {[%clk 0:00:07]} 62. f7 {[%clk 0:00:06]}  Kc7 {[%clk 0:00:02]} 63. f8=Q {[%clk 0:00:07]}  Kb7 {[%clk 0:00:03]} 64. Qc8+ {[%clk 0:00:07]}  Ka7 {[%clk 0:00:03]} 65. Qc7+ {[%clk 0:00:07]}  Ka8 {[%clk 0:00:03]} 66. Qc6+ {[%clk 0:00:07]} 1-0


[Site "https://www.chess.com"]

[Event "Titled Tuesday Blitz August 24 2021"]
[White "Sadhwani, Raunak"]
[Black "Sjugirov, Sanan"]
[WhiteFideId "35093487"]
[BlackFideId "4189302"]
[WhiteElo "2514"]
[BlackElo "2472"]
[Result "1/2-1/2"]
[Round "06"]
[TimeControl "180+1"]
[Date "2021.08.24"]
[WhiteClock "0:00:09"]
[BlackClock "0:00:05"]

1. b3 {[%clk 0:03:00]}  e5 {[%clk 0:02:57]} 2. Bb2 {[%clk 0:03:01]}  Nc6 {[%clk 0:02:56]} 3. e3 {[%clk 0:03:01]}  d5 {[%clk 0:02:55]} 4. Bb5 {[%clk 0:02:54]}  Ne7 {[%clk 0:02:54]} 5. Nf3 {[%clk 0:02:47]}  f6 {[%clk 0:02:06]} 6. d4 {[%clk 0:02:46]}  e4 {[%clk 0:02:05]} 7. Nfd2 {[%clk 0:02:47]}  a6 {[%clk 0:02:00]} 8. Be2 {[%clk 0:02:48]}  f5 {[%clk 0:01:55]} 9. c4 {[%clk 0:02:48]}  Be6 {[%clk 0:01:54]} 10. Nc3 {[%clk 0:02:48]}  Qd7 {[%clk 0:01:49]} 11. Rc1 {[%clk 0:02:49]}  g6 {[%clk 0:01:37]} 12. h4 {[%clk 0:02:25]}  h5 {[%clk 0:01:36]} 13. g3 {[%clk 0:02:24]}  Bg7 {[%clk 0:01:35]} 14. cxd5 {[%clk 0:02:12]}  Nxd5 {[%clk 0:01:35]} 15. Nxd5 {[%clk 0:02:13]}  Bxd5 {[%clk 0:01:35]} 16. a3 {[%clk 0:02:13]}  O-O {[%clk 0:01:32]} 17. Bc4 {[%clk 0:02:13]}  Ne7 {[%clk 0:01:26]} 18. b4 {[%clk 0:01:57]}  Bxc4 {[%clk 0:01:22]} 19. Nxc4 {[%clk 0:01:58]}  Nd5 {[%clk 0:01:20]} 20. Qb3 {[%clk 0:01:56]}  Kh7 {[%clk 0:01:16]} 21. Na5 {[%clk 0:01:57]}  c6 {[%clk 0:01:12]} 22. Nc4 {[%clk 0:01:41]}  Rae8 {[%clk 0:01:04]} 23. Qc2 {[%clk 0:01:38]}  Qe6 {[%clk 0:00:59]} 24. Na5 {[%clk 0:01:38]}  Rf7 {[%clk 0:00:53]} 25. Nb3 {[%clk 0:01:38]}  Bf8 {[%clk 0:00:46]} 26. Nc5 {[%clk 0:01:38]}  Qf6 {[%clk 0:00:45]} 27. Qd2 {[%clk 0:01:24]}  Bd6 {[%clk 0:00:43]} 28. Rc2 {[%clk 0:01:24]}  Qe7 {[%clk 0:00:40]} 29. Kd1 {[%clk 0:01:22]}  Ra8 {[%clk 0:00:36]} 30. Nb3 {[%clk 0:01:19]}  Bc7 {[%clk 0:00:30]} 31. Ke2 {[%clk 0:01:15]}  Raf8 {[%clk 0:00:27]} 32. Kd1 {[%clk 0:01:13]}  Ra8 {[%clk 0:00:26]} 33. Kc1 {[%clk 0:01:13]}  Qd8 {[%clk 0:00:24]} 34. Kb1 {[%clk 0:01:09]}  a5 {[%clk 0:00:17]} 35. bxa5 {[%clk 0:01:10]}  Bxa5 {[%clk 0:00:16]} 36. Qe2 {[%clk 0:01:11]}  Bc7 {[%clk 0:00:15]} 37. Rhc1 {[%clk 0:01:11]}  Bd6 {[%clk 0:00:15]} 38. Nc5 {[%clk 0:01:12]}  Qe7 {[%clk 0:00:13]} 39. Qc4 {[%clk 0:01:09]}  Rff8 {[%clk 0:00:11]} 40. Qb3 {[%clk 0:01:07]}  Ra7 {[%clk 0:00:11]} 41. Rc4 {[%clk 0:00:44]}  Rfa8 {[%clk 0:00:11]} 42. Qd1 {[%clk 0:00:44]}  b6 {[%clk 0:00:08]} 43. Nb3 {[%clk 0:00:44]}  Bxa3 {[%clk 0:00:08]} 44. Qe2 {[%clk 0:00:33]}  Bxb2 {[%clk 0:00:08]} 45. Qxb2 {[%clk 0:00:34]}  Ra3 {[%clk 0:00:05]} 46. R1c2 {[%clk 0:00:20]}  Qa7 {[%clk 0:00:05]} 47. Kc1 {[%clk 0:00:17]}  b5 {[%clk 0:00:03]} 48. Rxc6 {[%clk 0:00:17]}  Kh6 {[%clk 0:00:03]} 49. Kd2 {[%clk 0:00:11]}  Nb4 {[%clk 0:00:03]} 50. d5 {[%clk 0:00:11]}  Nxc2 {[%clk 0:00:03]} 51. Qf6 {[%clk 0:00:10]}  Qg7 {[%clk 0:00:03]} 52. Qg5+ {[%clk 0:00:11]}  Kh7 {[%clk 0:00:03]} 53. d6 {[%clk 0:00:08]}  R8a7 {[%clk 0:00:03]} 54. Kxc2 {[%clk 0:00:06]}  Ra2+ {[%clk 0:00:03]} 55. Kd1 {[%clk 0:00:07]}  Ra1+ {[%clk 0:00:03]} 56. Nxa1 {[%clk 0:00:06]}  Rxa1+ {[%clk 0:00:04]} 57. Rc1 {[%clk 0:00:06]}  Rxc1+ {[%clk 0:00:04]} 58. Kxc1 {[%clk 0:00:07]}  Qc3+ {[%clk 0:00:04]} 59. Kd1 {[%clk 0:00:08]}  Qd3+ {[%clk 0:00:05]} 60. Ke1 {[%clk 0:00:08]}  Qxd6 {[%clk 0:00:05]} 61. g4 {[%clk 0:00:08]}  hxg4 {[%clk 0:00:04]} 62. h5 {[%clk 0:00:08]}  b4 {[%clk 0:00:04]} 63. hxg6+ {[%clk 0:00:09]}  Qxg6 {[%clk 0:00:04]} 64. Qe7+ {[%clk 0:00:09]}  Qg7 {[%clk 0:00:05]} 65. Qxb4 {[%clk 0:00:10]}  Kg6 {[%clk 0:00:05]} 66. Qd6+ {[%clk 0:00:10]}  Qf6 {[%clk 0:00:06]} 67. Qd7 {[%clk 0:00:10]}  Qa1+ {[%clk 0:00:05]} 68. Ke2 {[%clk 0:00:10]}  Qa6+ {[%clk 0:00:05]} 69. Ke1 {[%clk 0:00:11]}  Qa1+ {[%clk 0:00:05]} 70. Ke2 {[%clk 0:00:11]}  Qf6 {[%clk 0:00:06]} 71. Kf1 {[%clk 0:00:11]}  Qf7 {[%clk 0:00:06]} 72. Qd6+ {[%clk 0:00:11]}  Kg5 {[%clk 0:00:06]} 73. Kg2 {[%clk 0:00:10]}  Qh7 {[%clk 0:00:04]} 74. Qf4+ {[%clk 0:00:10]}  Kg6 {[%clk 0:00:04]} 75. Qd6+ {[%clk 0:00:10]}  Kh5 {[%clk 0:00:04]} 76. Kg3 {[%clk 0:00:10]}  Kg5 {[%clk 0:00:04]} 77. Qd8+ {[%clk 0:00:10]}  Kg6 {[%clk 0:00:04]} 78. Kf4 {[%clk 0:00:10]}  Qh6+ {[%clk 0:00:05]} 79. Ke5 {[%clk 0:00:10]}  Qg7+ {[%clk 0:00:05]} 80. Kf4 {[%clk 0:00:10]}  Qh6+ {[%clk 0:00:05]} 81. Ke5 {[%clk 0:00:10]}  Qg7+ {[%clk 0:00:05]} 82. Kf4 {[%clk 0:00:09]}  Qh6+ {[%clk 0:00:05]} 1/2-1/2


[Site "https://www.chess.com"]

[Event "Titled Tuesday Blitz August 24 2021"]
[White "Sarana, Alexey"]
[Black "Balakrishnan, Praveen"]
[WhiteFideId "24133795"]
[BlackFideId "2064871"]
[WhiteElo "2646"]
[BlackElo "2237"]
[Result "0-1"]
[Round "06"]
[TimeControl "180+1"]
[Date "2021.08.24"]
[WhiteClock "0:00:06"]
[BlackClock "0:00:08"]

1. e4 {[%clk 0:02:59]}  g6 {[%clk 0:02:59]} 2. d4 {[%clk 0:02:59]}  Bg7 {[%clk 0:02:59]} 3. Nc3 {[%clk 0:03:00]}  a6 {[%clk 0:02:59]} 4. f4 {[%clk 0:02:59]}  b5 {[%clk 0:02:56]} 5. Nf3 {[%clk 0:03:00]}  Bb7 {[%clk 0:02:55]} 6. Bd3 {[%clk 0:03:01]}  d6 {[%clk 0:02:50]} 7. a4 {[%clk 0:03:01]}  b4 {[%clk 0:02:45]} 8. Ne2 {[%clk 0:03:01]}  c5 {[%clk 0:02:46]} 9. c3 {[%clk 0:03:01]}  Nf6 {[%clk 0:02:35]} 10. Ng3 {[%clk 0:02:55]}  O-O {[%clk 0:02:34]} 11. O-O {[%clk 0:02:55]}  c4 {[%clk 0:02:22]} 12. Bb1 {[%clk 0:02:43]}  Nbd7 {[%clk 0:02:08]} 13. cxb4 {[%clk 0:02:40]}  Qb6 {[%clk 0:01:55]} 14. Bd2 {[%clk 0:02:28]}  e5 {[%clk 0:01:52]} 15. a5 {[%clk 0:01:56]}  Qa7 {[%clk 0:01:51]} 16. fxe5 {[%clk 0:01:43]}  dxe5 {[%clk 0:01:52]} 17. Bc3 {[%clk 0:01:43]}  Ng4 {[%clk 0:01:51]} 18. Re1 {[%clk 0:01:31]}  Rad8 {[%clk 0:01:36]} 19. h3 {[%clk 0:01:32]}  exd4 {[%clk 0:01:17]} 20. Bxd4 {[%clk 0:01:29]}  Bxd4+ {[%clk 0:01:15]} 21. Qxd4 {[%clk 0:01:30]}  Qxd4+ {[%clk 0:01:15]} 22. Nxd4 {[%clk 0:01:31]}  Nde5 {[%clk 0:01:09]} 23. Nde2 {[%clk 0:01:23]}  Nf6 {[%clk 0:00:57]} 24. Nc3 {[%clk 0:01:22]}  Rd2 {[%clk 0:00:57]} 25. Re2 {[%clk 0:01:16]}  Rfd8 {[%clk 0:00:54]} 26. b5 {[%clk 0:01:15]}  Rxe2 {[%clk 0:00:49]} 27. Ngxe2 {[%clk 0:01:11]}  Rd2 {[%clk 0:00:48]} 28. b6 {[%clk 0:00:54]}  Rxb2 {[%clk 0:00:47]} 29. Nd4 {[%clk 0:00:47]}  Nd3 {[%clk 0:00:35]} 30. Bc2 {[%clk 0:00:34]}  Nxe4 {[%clk 0:00:27]} 31. Nxe4 {[%clk 0:00:35]}  Bxe4 {[%clk 0:00:27]} 32. Ra4 {[%clk 0:00:31]}  Bd5 {[%clk 0:00:22]} 33. Ra3 {[%clk 0:00:26]}  Nb4 {[%clk 0:00:17]} 34. Rc3 {[%clk 0:00:24]}  Ra2 {[%clk 0:00:17]} 35. Kf1 {[%clk 0:00:11]}  Rxa5 {[%clk 0:00:16]} 36. Bd1 {[%clk 0:00:10]}  Ra1 {[%clk 0:00:15]} 37. Ke2 {[%clk 0:00:06]}  Ra2+ {[%clk 0:00:15]} 38. Ke3 {[%clk 0:00:05]}  Rb2 {[%clk 0:00:15]} 39. Bf3 {[%clk 0:00:04]}  Bxf3 {[%clk 0:00:14]} 40. Kxf3 {[%clk 0:00:04]}  Nd5 {[%clk 0:00:14]} 41. Rxc4 {[%clk 0:00:05]}  Nxb6 {[%clk 0:00:15]} 42. Rc7 {[%clk 0:00:04]}  a5 {[%clk 0:00:15]} 43. Ra7 {[%clk 0:00:04]}  a4 {[%clk 0:00:15]} 44. Nc6 {[%clk 0:00:05]}  Rb3+ {[%clk 0:00:15]} 45. Ke4 {[%clk 0:00:04]}  a3 {[%clk 0:00:10]} 46. g4 {[%clk 0:00:03]}  Nc4 {[%clk 0:00:10]} 47. Kd5 {[%clk 0:00:02]}  Ne3+ {[%clk 0:00:09]} 48. Kd4 {[%clk 0:00:02]}  Nc2+ {[%clk 0:00:09]} 49. Kc4 {[%clk 0:00:03]}  Rxh3 {[%clk 0:00:09]} 50. Ne5 {[%clk 0:00:03]}  Re3 {[%clk 0:00:09]} 51. Nxf7 {[%clk 0:00:03]}  Rg3 {[%clk 0:00:07]} 52. Nh6+ {[%clk 0:00:03]}  Kf8 {[%clk 0:00:08]} 53. Rxh7 {[%clk 0:00:03]}  a2 {[%clk 0:00:08]} 54. Rf7+ {[%clk 0:00:03]}  Ke8 {[%clk 0:00:08]} 55. Rf1 {[%clk 0:00:04]}  a1=Q {[%clk 0:00:08]} 56. Rxa1 {[%clk 0:00:05]}  Nxa1 {[%clk 0:00:09]} 57. Kd4 {[%clk 0:00:06]}  Nc2+ {[%clk 0:00:09]} 58. Ke5 {[%clk 0:00:07]}  Ne3 {[%clk 0:00:09]} 59. Kf6 {[%clk 0:00:07]}  Nxg4+ {[%clk 0:00:09]} 60. Kg5 {[%clk 0:00:08]}  Nxh6+ {[%clk 0:00:09]} 61. Kh4 {[%clk 0:00:06]}  Rg1 {[%clk 0:00:08]} 0-1


[Site "https://www.chess.com"]

[Event "Titled Tuesday Blitz August 24 2021"]
[White "Seliverstov, Vladimir"]
[Black "Nazaretyan, Tigran"]
[WhiteFideId "4192036"]
[BlackFideId "24162345"]
[WhiteElo "2489"]
[BlackElo "2167"]
[Result "1-0"]
[Round "06"]
[TimeControl "180+1"]
[Date "2021.08.24"]
[WhiteClock "0:01:01"]
[BlackClock "0:00:06"]

1. d4 {[%clk 0:03:00]}  Nf6 {[%clk 0:02:16]} 2. Bf4 {[%clk 0:02:55]}  d6 {[%clk 0:02:16]} 3. e3 {[%clk 0:02:55]}  Nbd7 {[%clk 0:02:15]} 4. Nf3 {[%clk 0:02:56]}  Nh5 {[%clk 0:02:15]} 5. Bg5 {[%clk 0:02:55]}  h6 {[%clk 0:02:15]} 6. Bh4 {[%clk 0:02:56]}  g5 {[%clk 0:02:15]} 7. Nfd2 {[%clk 0:02:56]}  Ndf6 {[%clk 0:02:14]} 8. Be2 {[%clk 0:02:53]}  Ng7 {[%clk 0:02:14]} 9. Bg3 {[%clk 0:02:52]}  Nf5 {[%clk 0:02:13]} 10. c3 {[%clk 0:02:49]}  h5 {[%clk 0:02:12]} 11. e4 {[%clk 0:02:44]}  Nxe4 {[%clk 0:02:02]} 12. Nxe4 {[%clk 0:02:33]}  h4 {[%clk 0:02:02]} 13. Nxg5 {[%clk 0:02:20]}  hxg3 {[%clk 0:01:59]} 14. Bh5 {[%clk 0:02:20]}  gxf2+ {[%clk 0:01:55]} 15. Kxf2 {[%clk 0:02:21]}  Nh6 {[%clk 0:01:35]} 16. Qf3 {[%clk 0:02:20]}  Qd7 {[%clk 0:00:55]} 17. Nxf7 {[%clk 0:02:06]}  Nxf7 {[%clk 0:00:54]} 18. Qxf7+ {[%clk 0:02:06]}  Kd8 {[%clk 0:00:54]} 19. Nd2 {[%clk 0:01:59]}  Bh6 {[%clk 0:00:53]} 20. Nf3 {[%clk 0:01:57]}  Rf8 {[%clk 0:00:51]} 21. Qg6 {[%clk 0:01:56]}  Qe6 {[%clk 0:00:48]} 22. Qxe6 {[%clk 0:01:54]}  Bxe6 {[%clk 0:00:49]} 23. Rhe1 {[%clk 0:01:50]}  Bd5 {[%clk 0:00:46]} 24. Bg6 {[%clk 0:01:44]}  b5 {[%clk 0:00:44]} 25. Be4 {[%clk 0:01:43]}  Bxe4 {[%clk 0:00:37]} 26. Rxe4 {[%clk 0:01:44]}  Kd7 {[%clk 0:00:37]} 27. Rae1 {[%clk 0:01:43]}  Rf7 {[%clk 0:00:38]} 28. Ke2 {[%clk 0:01:30]}  c6 {[%clk 0:00:36]} 29. Kd3 {[%clk 0:01:30]}  a5 {[%clk 0:00:36]} 30. Rh4 {[%clk 0:01:23]}  Rf6 {[%clk 0:00:31]} 31. Rg4 {[%clk 0:01:20]}  a4 {[%clk 0:00:28]} 32. Re2 {[%clk 0:01:14]}  a3 {[%clk 0:00:28]} 33. b3 {[%clk 0:01:14]}  Raf8 {[%clk 0:00:26]} 34. h4 {[%clk 0:01:07]}  Bf4 {[%clk 0:00:21]} 35. Rg7 {[%clk 0:01:05]}  Bh6 {[%clk 0:00:20]} 36. Rgxe7+ {[%clk 0:01:02]}  Kd8 {[%clk 0:00:20]} 37. Ra7 {[%clk 0:01:03]}  Rxf3+ {[%clk 0:00:17]} 38. gxf3 {[%clk 0:01:03]}  Rxf3+ {[%clk 0:00:18]} 39. Kc2 {[%clk 0:01:03]}  Rf1 {[%clk 0:00:17]} 40. Rg2 {[%clk 0:01:03]}  Rc1+ {[%clk 0:00:17]} 41. Kd3 {[%clk 0:01:03]}  Rd1+ {[%clk 0:00:17]} 42. Ke4 {[%clk 0:01:02]}  Re1+ {[%clk 0:00:17]} 43. Kf5 {[%clk 0:01:02]}  Rf1+ {[%clk 0:00:16]} 44. Ke6 {[%clk 0:01:01]}  Re1+ {[%clk 0:00:16]} 45. Kxd6 {[%clk 0:01:01]}  Bf4+ {[%clk 0:00:16]} 46. Kxc6 {[%clk 0:01:01]}  Re6+ {[%clk 0:00:17]} 47. Kxb5 {[%clk 0:01:02]}  Bc7 {[%clk 0:00:08]} 48. Rg8+ {[%clk 0:01:01]}  Kd7 {[%clk 0:00:08]} 49. Rg7+ {[%clk 0:01:01]}  Kd6 {[%clk 0:00:09]} 50. Ra6+ {[%clk 0:01:01]}  Kd5 {[%clk 0:00:07]} 51. Rxe6 {[%clk 0:01:01]}  Be5 {[%clk 0:00:06]} 52. Rxe5+ {[%clk 0:01:00]}  Kd6 {[%clk 0:00:06]} 53. Rg6+ {[%clk 0:01:01]} 1-0


[Site "https://www.chess.com"]